fUST/lending_fUST_20250226
["ID","MTS","AMOUNT","RATE_DAILY","PERIOD"]
[354458843,1740519056670,-733.07,0.00049315,120]
[354458844,1740519056679,-500.0,0.00049315,120]
[354458845,1740519056689,-500.0,0.00049315,120]
[354458846,1740519056698,-2585.71,0.00049315,120]
[354458847,1740519056708,-500.0,0.00049315,120]
[354458848,1740519056717,-500.0,0.00049315,120]
[354458849,1740519056726,-726.95,0.00049315,120]
[354458850,1740519056735,-500.0,0.00049315,120]
[354458851,1740519056745,-500.0,0.00049315,120]
[354458852,1740519056754,-670.86,0.00049315,120]
[354458853,1740519056763,-500.0,0.00049315,120]
[354458854,1740519056772,-500.0,0.00049315,120]
[354458855,1740519056782,-5845.81,0.00049315,120]
[354458856,1740519056791,-590.64,0.00049315,120]
[354458857,1740519056800,-4218.67,0.00049315,120]
[354458858,1740519056810,-1445.64,0.00049315,120]
[354458859,1740519056819,-500.0,0.00049315,120]
[354458860,1740519056828,-266.62679702,0.00049315,120]
[354458861,1740519056838,-500.0,0.00049315,120]
[354458862,1740519056847,-1100.12,0.00049315,20]
[354458863,1740519056857,-500.0,0.00049315,120]
[354458864,1740519056866,-2086.48,0.00049315,120]
[354458865,1740519056875,-283257.38,0.00049315,7]
[354458866,1740519056884,-7848.82,0.00049315,120]
[354458867,1740519056894,-7848.82,0.00049315,120]
[354458868,1740519056904,-500.0,0.00049315,120]
[354458869,1740519056915,-7848.82,0.00049315,120]
[354458870,1740519056924,-7848.82,0.00049315,120]
[354458871,1740519056933,-7848.82,0.00049315,120]
[354458872,1740519056943,-7848.82,0.00049315,120]
[354458873,1740519056953,-502.0740609,0.00049315,120]
[354458874,1740519056962,-7848.82,0.00049315,120]
[354458875,1740519056971,-7848.82,0.00049315,120]
[354458876,1740519056981,-7848.82,0.00049315,120]
[354458877,1740519056991,-7848.82,0.00049315,120]
[354458878,1740519057000,-7848.82,0.00049315,120]
[354458879,1740519057010,-7848.82,0.00049315,120]
[354458880,1740519057019,-7848.82,0.00049315,120]
[354458881,1740519057029,-7848.82,0.00049315,120]
[354458882,1740519057038,-7848.82,0.00049315,120]
[354458883,1740519057047,-7848.82,0.00049315,120]
[354458884,1740519057057,-7848.82,0.00049315,120]
[354458885,1740519057066,-7848.82,0.00049315,120]
[354458886,1740519057075,-7848.82,0.00049315,120]
[354458887,1740519057085,-7848.82,0.00049315,120]
[354458888,1740519057095,-7848.82,0.00049315,120]
[354458889,1740519057105,-7848.82,0.00049315,120]
[354458890,1740519057115,-20065.51,0.00049315,120]
[354458891,1740519057125,-500.0,0.00049315,120]
[354458892,1740519057134,-7848.82,0.00049315,120]
[354458893,1740519057144,-7849.01111214,0.00049315,120]
[354458894,1740519057154,-660.84,0.00049315,120]
[354458895,1740519057165,-500.0,0.00049315,120]
[354458896,1740519057175,-500.0,0.00049315,120]
[354458897,1740519057185,-1864.81,0.00049315,120]
[354458898,1740519057194,-1864.81,0.00049315,120]
[354458899,1740519057204,-1864.81,0.00049315,120]
[354458900,1740519057213,-1864.81,0.00049315,120]
[354458901,1740519057223,-1864.81,0.00049315,120]
[354458902,1740519057232,-500.0,0.00049315,120]
[354458903,1740519057242,-1864.81,0.00049315,120]
[354458904,1740519057252,-1864.81,0.00049315,120]
[354458905,1740519057263,-1864.81,0.00049315,120]
[354458906,1740519057273,-1864.81,0.00049315,120]
[354458907,1740519057282,-1864.81,0.00049315,120]
[354458908,1740519057292,-2037.3,0.00049315,120]
[354458909,1740519057302,-1864.81,0.00049315,120]
[354458910,1740519057311,-1864.81,0.00049315,120]
[354458911,1740519057321,-1864.81,0.00049315,120]
[354458912,1740519057331,-1864.81,0.00049315,120]
[354458913,1740519057341,-500.0,0.00049315,120]
[354458914,1740519057351,-1864.81,0.00049315,120]
[354458915,1740519057360,-500.0,0.00049315,120]
[354458916,1740519057370,-1864.81,0.00049315,120]
[354458917,1740519057379,-1864.81,0.00049315,120]
[354458918,1740519057389,-500.0,0.00049315,120]
[354458919,1740519057398,-500.0,0.00049315,120]
[354458920,1740519057409,-1864.81,0.00049315,120]
[354458921,1740519057418,-1864.81,0.00049315,120]
[354458922,1740519057428,-1864.81,0.00049315,120]
[354458923,1740519057437,-1864.81,0.00049315,120]
[354458924,1740519057447,-1864.81,0.00049315,120]
[354458925,1740519057456,-250.00584549,0.00049315,120]
[354458926,1740519057596,-1864.81,0.00049315,120]
[354458927,1740519057610,-1864.85544028,0.00049315,120]
[354458928,1740519057619,-500.0,0.00049315,120]
[354458929,1740519057629,-500.0,0.00049315,120]
[354458930,1740519057639,-500.0,0.00049315,120]
[354458931,1740519057648,-500.0,0.00049315,120]
[354458932,1740519057659,-500.0,0.00049315,120]
[354458933,1740519057669,-500.0,0.00049315,120]
[354458934,1740519057678,-500.0,0.00049315,120]
[354458935,1740519057690,-500.0,0.00049315,120]
[354458936,1740519057700,-500.0,0.00049315,120]
[354458937,1740519057709,-500.0,0.00049315,120]
[354458938,1740519057719,-1374.19,0.00049315,120]
[354458939,1740519057728,-500.0,0.00049315,120]
[354458940,1740519057738,-500.0,0.00049315,120]
[354458941,1740519057747,-500.0,0.00049315,120]
[354458942,1740519057757,-502.52,0.00049315,120]
[354458943,1740519057767,-500.0,0.00049315,120]
[354458944,1740519057776,-500.0,0.00049315,120]
[354458945,1740519057786,-406.17558128,0.00049315,120]
[354458946,1740519057795,-4451.23,0.00049315,120]
[354458947,1740519057804,-500.0,0.00049315,120]
[354458948,1740519057814,-500.0,0.00049315,120]
[354458949,1740519057823,-2896.86,0.00049315,120]
[354458950,1740519057833,-1021.51,0.00049315,120]
[354458951,1740519057842,-1685.87,0.00049315,120]
[354458952,1740519057851,-500.0,0.00049315,120]
[354458953,1740519057861,-552.91,0.00049315,120]
[354458954,1740519057870,-565.81,0.00049315,120]
[354458955,1740519057880,-500.0,0.00049315,120]
[354458956,1740519057889,-500.0,0.00049315,120]
[354458957,1740519057898,-500.0,0.00049315,120]
[354458958,1740519057908,-503.61612058,0.00049315,120]
[354458959,1740519057918,-500.0,0.00049315,120]
[354458960,1740519057928,-1928.44,0.00049315,120]
[354458961,1740519057938,-500.0,0.00049315,120]
[354458962,1740519057947,-2767.4,0.00049315,120]
[354458963,1740519057957,-500.0,0.00049315,120]
[354458964,1740519057966,-500.0,0.00049315,120]
[354458965,1740519057976,-500.0,0.00049315,120]
[354458966,1740519057985,-500.0,0.00049315,120]
[354458967,1740519057994,-870.42,0.00049315,120]
[354458968,1740519058004,-500.0,0.00049315,120]
[354458969,1740519058013,-2177.76,0.00049315,120]
[354458970,1740519058023,-500.0,0.00049315,120]
[354458971,1740519058031,-500.0,0.00049315,120]
[354458972,1740519058041,-246.09345534,0.00049315,120]
[354458973,1740519058050,-500.0,0.00049315,120]
[354458974,1740519058060,-500.0,0.00049315,120]
[354458975,1740519058069,-500.0,0.00049315,120]
[354458976,1740519058078,-501.58654272,0.00049315,120]
[354458977,1740519058087,-500.0,0.00049315,120]
[354458978,1740519058097,-500.0,0.00049315,120]
[354458979,1740519058107,-500.0,0.00049315,120]
[354458980,1740519058116,-978.57,0.00049315,120]
[354458981,1740519058126,-500.0,0.00049315,120]
[354458982,1740519058135,-500.0,0.00049315,120]
[354458983,1740519058146,-500.0,0.00049315,120]
[354458984,1740519058155,-500.0,0.00049315,120]
[354458985,1740519058165,-1818.45,0.00049315,120]
[354458986,1740519058175,-500.0,0.00049315,120]
[354458987,1740519058185,-500.0,0.00049315,120]
[354458988,1740519058194,-500.0,0.00049315,120]
[354458989,1740519058204,-500.0,0.00049315,120]
[354458990,1740519058215,-500.0,0.00049315,120]
[354458991,1740519058224,-593.79,0.00049315,120]
[354458992,1740519058234,-500.0,0.00049315,120]
[354458993,1740519058243,-500.0,0.00049315,30]
[354458994,1740519058252,-500.0,0.00049315,120]
[354458995,1740519058262,-260.65426981,0.00049315,120]
[354458996,1740519058271,-661.6,0.00049315,120]
[354458997,1740519058282,-500.0,0.00049315,120]
[354458998,1740519058292,-500.0,0.00049315,120]
[354458999,1740519058301,-2631.55,0.00049315,120]
[354459000,1740519058310,-3650.16,0.00049315,120]
[354459001,1740519058320,-500.0,0.00049315,120]
[354459002,1740519058330,-500.0,0.00049315,120]
[354459003,1740519058339,-503.09425387,0.00049315,120]
[354459004,1740519058349,-500.0,0.00049315,120]
[354459005,1740519058358,-500.0,0.00049315,30]
[354459006,1740519058368,-500.0,0.00049315,120]
[354459007,1740519058377,-3173.46,0.00049315,120]
[354459008,1740519058386,-883.73,0.00049315,2]
[354459009,1740519058396,-367.15647313,0.00049315,120]
[354459010,1740519058405,-500.0,0.00049315,120]
[354459011,1740519058415,-1566.75,0.00049315,120]
[354459012,1740519058424,-1100.1,0.00049315,120]
[354459013,1740519058434,-1475.49,0.00049315,120]
[354459014,1740519058443,-500.0,0.00049315,120]
[354459015,1740519058452,-2766.33,0.00049315,120]
[354459016,1740519058462,-500.0,0.00049315,120]
[354459017,1740519058471,-500.0,0.00049315,120]
[354459018,1740519058480,-500.0,0.00049315,120]
[354459019,1740519058489,-500.0,0.00049315,120]
[354459020,1740519058498,-500.0,0.00049315,120]
[354459021,1740519058507,-500.0,0.00049315,120]
[354459022,1740519058517,-500.80502191,0.00049315,60]
[354459023,1740519058526,-29300.14,0.00049315,6]
[354459024,1740519058535,-500.0,0.00049315,120]
[354459025,1740519058544,-19347.35,0.00049315,120]
[354459026,1740519058554,-1361.8,0.00049315,7]
[354459027,1740519058563,-500.0,0.00049315,120]
[354459028,1740519058572,-500.0,0.00049315,120]
[354459029,1740519058581,-1497.93,0.00049315,120]
[354459030,1740519058590,-2398.83,0.00049315,120]
[354459031,1740519058600,-500.0,0.00049315,120]
[354459032,1740519058610,-500.96581,0.00049315,120]
[354459033,1740519058623,-585.13763633,0.00049315,120]
[354459034,1740519058632,-500.0,0.00049315,120]
[354459035,1740519058643,-500.0,0.00049315,120]
[354459036,1740519058652,-500.0,0.00049315,120]
[354459037,1740519058663,-30730.86,0.00049315,120]
[354459038,1740519058672,-500.0,0.00049315,120]
[354459039,1740519058682,-500.0,0.00049315,120]
[354459040,1740519058692,-2352.84,0.00049315,120]
[354459041,1740519058700,-2743.62,0.00049315,120]
[354459042,1740519058715,-500.0,0.00049315,120]
[354459043,1740519058724,-500.0,0.00049315,120]
[354459044,1740519058733,-1070.39,0.00049315,120]
[354459045,1740519058743,-500.0,0.00049315,120]
[354459046,1740519058753,-500.0,0.00049315,120]
[354459047,1740519058762,-500.0,0.00049315,120]
[354459048,1740519058771,-500.0,0.00049315,120]
[354459049,1740519058780,-500.0,0.00049315,120]
[354459050,1740519058790,-542.72,0.00049315,120]
[354459051,1740519058799,-500.0,0.00049315,120]
[354459052,1740519058808,-500.0,0.00049315,120]
[354459053,1740519058818,-5233.03,0.00049315,120]
[354459054,1740519058827,-14540.75,0.00049315,120]
[354459055,1740519058837,-500.0,0.00049315,120]
[354459056,1740519058846,-500.0,0.00049315,2]
[354459057,1740519058855,-3385.4,0.00049315,120]
[354459058,1740519058864,-500.0,0.00049315,120]
[354459059,1740519058873,-2698.68,0.00049315,120]
[354459060,1740519058882,-500.0,0.00049315,120]
[354459061,1740519058892,-1221.43,0.00049315,120]
[354459062,1740519058901,-411.46420398,0.00049315,20]
[354459063,1740519058910,-500.0,0.00049315,120]
[354459064,1740519058919,-1698.15,0.00049315,120]
[354459065,1740519058928,-500.0,0.00049315,120]
[354459066,1740519058937,-500.0,0.00049315,120]
[354459067,1740519058947,-500.0,0.00049315,120]
[354459068,1740519058956,-500.0,0.00049315,120]
[354459069,1740519058965,-500.0,0.00049315,2]
[354459070,1740519058974,-500.0,0.00049315,120]
[354459071,1740519058983,-500.0,0.00049315,120]
[354459072,1740519058993,-797.95,0.00049315,120]
[354459073,1740519059002,-647.76837748,0.00049315,120]
[354459074,1740519059011,-1952.34,0.00049315,120]
[354459075,1740519059020,-239.14124969,0.00049315,120]
[354459076,1740519059029,-500.0,0.00049315,120]
[354459077,1740519059039,-500.0,0.00049315,120]
[354459078,1740519059048,-500.0,0.00049315,2]
[354459079,1740519059058,-502.88371097,0.00049315,120]
[354459080,1740519059067,-500.0,0.00049315,120]
[354459081,1740519059076,-500.0,0.00049315,120]
[354459082,1740519059085,-611.0648295,0.00049315,120]
[354459083,1740519059094,-500.0,0.00049315,120]
[354459084,1740519059103,-500.0,0.00049315,120]
[354459085,1740519059112,-500.0,0.00049315,120]
[354459086,1740519059121,-500.0,0.00049315,120]
[354459087,1740519059131,-500.0,0.00049315,120]
[354459088,1740519059140,-500.0,0.00049315,120]
[354459089,1740519059149,-500.0,0.00049315,120]
[354459090,1740519059158,-2341.12,0.00049315,120]
[354459091,1740519059168,-500.0,0.00049315,120]
[354459092,1740519059177,-500.0,0.00049315,120]
[354459093,1740519059186,-500.0,0.00049315,120]
[354459094,1740519059196,-608.77,0.00049315,120]
[354459095,1740519059205,-500.0,0.00049315,120]
[354459096,1740519059214,-500.0,0.00049315,120]
[354459097,1740519059223,-500.0,0.00049315,120]
[354459098,1740519059233,-500.0,0.00049315,120]
[354459099,1740519059243,-500.0,0.00049315,120]
[354459100,1740519059252,-4629.54,0.00049315,120]
[354459101,1740519059262,-6945.35,0.00049315,120]
[354459102,1740519059271,-500.0,0.00049315,120]
[354459103,1740519059281,-500.0,0.00049315,120]
[354459104,1740519059290,-875.11,0.00049315,120]
[354459105,1740519059299,-500.0,0.00049315,120]
[354459106,1740519059309,-501.1779065,0.00049315,120]
[354459107,1740519059318,-500.0,0.00049315,120]
[354459108,1740519059327,-500.0,0.00049315,120]
[354459109,1740519059336,-500.0,0.00049315,120]
[354459110,1740519059346,-500.0,0.00049315,120]
[354459111,1740519059355,-500.80551448,0.00049315,120]
[354459112,1740519059364,-1793.94,0.00049315,120]
[354459113,1740519059374,-500.0,0.00049315,120]
[354459114,1740519059384,-1101.55,0.00049315,120]
[354459115,1740519059393,-501.70713642,0.00049315,120]
[354459116,1740519059402,-615.16,0.00049315,120]
[354459117,1740519059411,-500.0,0.00049315,120]
[354459118,1740519059422,-14537.03,0.00049315,120]
[354459119,1740519059431,-1776.54,0.00049315,120]
[354459120,1740519059441,-3751.79,0.00049315,120]
[354459121,1740519059450,-500.0,0.00049315,120]
[354459122,1740519059459,-1776.3,0.00049315,120]
[354459123,1740519059468,-500.0,0.00049315,120]
[354459124,1740519059477,-500.0,0.00049315,120]
[354459125,1740519059487,-500.0,0.00049315,120]
[354459126,1740519059495,-500.0,0.00049315,120]
[354459127,1740519059504,-156.00594704,0.00049315,120]
[354459128,1740519059513,-500.0,0.00049373,10]
[354459129,1740519059523,-500.0,0.00049373,10]
[354459130,1740519059531,-500.0,0.00049373,2]
[354459131,1740519059541,-237.90476766,0.00049373,10]
[354459132,1740519059550,-268.33086919,0.00049373,10]
[354459133,1740519059559,-219.59363206,0.00049373,10]
[354459134,1740519059568,-471.99399817,0.00049373,10]
[354459135,1740519059577,-171.12504259,0.00049373,10]
[354459136,1740519059587,-500.0,0.00049373,10]
[354459137,1740519059597,-500.0,0.00049373,10]
[354459138,1740519059607,-168.34559842,0.00049373,10]
[354459139,1740519059619,-251.27606008,0.00049373,10]
[354459140,1740519059628,-500.0,0.00049373,10]
[354459141,1740519059637,-500.0,0.00049373,10]
[354459142,1740519059646,-500.69722395,0.00049373,10]
[354459143,1740519059657,-359.52046734,0.00049373,10]
[354459144,1740519059667,-270.50711964,0.00049373,10]
[354459145,1740519059676,-165.50003931,0.00049373,10]
[354459146,1740519059685,-218.7667233,0.00049373,10]
[354459147,1740519059696,-500.0,0.00049373,10]
[354459148,1740519059705,-500.0,0.00049373,10]
[354459149,1740519059715,-500.0,0.00049373,10]
[354459150,1740519059724,-500.0,0.00049452,120]
[354459151,1740519059733,-156.00594704,0.00049562,120]
[354459152,1740519059743,-500.0,0.00049573,10]
[354459153,1740519059752,-573.46436203,0.00049573,10]
[354459154,1740519059762,-500.0,0.00049573,10]
[354459155,1740519059772,-500.0,0.00049573,10]
[354459156,1740519059782,-505.11124508,0.00049573,10]
[354459157,1740519059791,-601.45648009,0.00049573,10]
[354459158,1740519059801,-500.0,0.00049573,10]
[354459159,1740519059810,-500.0,0.00049573,10]
[354459160,1740519059819,-500.0,0.00049573,10]
[354459161,1740519059829,-500.0,0.00049573,10]
[354459162,1740519059838,-500.0,0.00049573,10]
[354459163,1740519059847,-500.0,0.00049573,10]
[354459164,1740519059856,-500.0,0.00049573,10]
[354459165,1740519059865,-500.0,0.00049573,10]
[354459166,1740519059874,-500.0,0.00049573,10]
[354459167,1740519059883,-500.0,0.00049589,120]
[354459168,1740519059893,-500.0,0.00049589,120]
[354459169,1740519059902,-500.0,0.00049589,120]
[354459170,1740519059912,-500.0,0.00049589,120]
[354459171,1740519059922,-500.0,0.00049589,120]
[354459172,1740519059931,-500.0,0.00049589,120]
[354459173,1740519059940,-500.0,0.00049589,120]
[354459174,1740519059949,-168.77003781,0.00049589,120]
[354459175,1740519059958,-589.75371842,0.00049589,120]
[354459176,1740519059968,-500.0,0.00049589,120]
[354459177,1740519059977,-500.0,0.00049589,120]
[354459178,1740519059986,-500.0,0.00049589,120]
[354459179,1740519059996,-500.0,0.00049589,120]
[354459180,1740519060005,-500.0,0.00049589,120]
[354459181,1740519060015,-500.0,0.00049589,120]
[354459182,1740519060025,-500.0,0.00049589,120]
[354459183,1740519060034,-500.0,0.00049589,120]
[354459184,1740519060044,-500.0,0.00049589,120]
[354459185,1740519060053,-500.0,0.00049589,120]
[354459186,1740519060063,-500.0,0.00049589,120]
[354459187,1740519060072,-500.0,0.00049589,120]
[354459188,1740519060081,-500.0,0.00049589,120]
[354459189,1740519060091,-500.0,0.00049589,120]
[354459190,1740519060101,-500.0,0.00049589,120]
[354459191,1740519060110,-500.0,0.00049589,120]
[354459192,1740519060119,-504.7372326,0.00049589,120]
[354459193,1740519060129,-500.0,0.00049589,120]
[354459194,1740519060138,-500.0,0.00049589,120]
[354459195,1740519060148,-500.0,0.00049589,120]
[354459196,1740519060157,-500.0,0.00049589,30]
[354459197,1740519060167,-500.0,0.00049589,120]
[354459198,1740519060177,-605.96557604,0.00049589,120]
[354459199,1740519060187,-500.0,0.00049589,120]
[354459200,1740519060196,-1412.39,0.00049589,120]
[354459201,1740519060206,-500.0,0.00049589,120]
[354459202,1740519060215,-500.0,0.00049589,120]
[354459203,1740519060225,-500.0,0.00049589,120]
[354459204,1740519060234,-500.0,0.00049589,120]
[354459205,1740519060244,-500.0,0.00049589,120]
[354459206,1740519060253,-500.0,0.00049589,120]
[354459207,1740519060397,-1573.02,0.00049589,120]
[354459208,1740519060407,-500.0,0.00049589,120]
[354459209,1740519060419,-500.0,0.00049589,120]
[354459210,1740519060429,-500.0,0.00049589,120]
[354459211,1740519060438,-500.0,0.00049589,120]
[354459212,1740519060447,-500.0,0.00049589,120]
[354459213,1740519060456,-500.0,0.00049589,120]
[354459214,1740519060465,-500.0,0.00049589,120]
[354459215,1740519060475,-500.0,0.00049589,120]
[354459216,1740519060484,-876.92,0.00049589,120]
[354459217,1740519060494,-512.36350775,0.00049589,120]
[354459218,1740519060503,-925.21,0.00049589,120]
[354459219,1740519060512,-660.53,0.00049589,120]
[354459220,1740519060522,-500.0,0.00049589,120]
[354459221,1740519060531,-500.0,0.00049589,120]
[354459222,1740519060540,-500.0,0.00049589,120]
[354459223,1740519060549,-500.0,0.00049589,120]
[354459224,1740519060559,-500.0,0.00049589,120]
[354459225,1740519060568,-500.0,0.00049589,120]
[354459226,1740519060578,-500.0,0.00049589,120]
[354459227,1740519060587,-795.52,0.00049589,120]
[354459228,1740519060597,-500.0,0.00049589,120]
[354459229,1740519060606,-500.0,0.00049589,120]
[354459230,1740519060618,-500.0,0.00049589,120]
[354459231,1740519060628,-500.0,0.00049589,120]
[354459232,1740519060637,-500.0,0.00049589,30]
[354459233,1740519060647,-500.0,0.00049589,120]
[354459234,1740519060659,-500.0,0.00049589,120]
[354459235,1740519060672,-500.0,0.00049589,120]
[354459236,1740519060681,-500.0,0.00049589,120]
[354459237,1740519060692,-500.0,0.00049589,120]
[354459238,1740519060702,-500.0,0.00049589,120]
[354459239,1740519060711,-500.0,0.00049589,120]
[354459240,1740519060722,-1269.6,0.00049589,120]
[354459241,1740519060731,-500.0,0.00049589,120]
[354459242,1740519060741,-500.0,0.00049589,120]
[354459243,1740519060751,-500.0,0.00049589,120]
[354459244,1740519060761,-500.0,0.00049589,120]
[354459245,1740519060771,-501.58367414,0.00049589,120]
[354459246,1740519060781,-500.0,0.00049589,120]
[354459247,1740519060792,-500.0,0.00049589,120]
[354459248,1740519060803,-500.0,0.00049589,120]
[354459249,1740519060812,-545.88,0.00049589,120]
[354459250,1740519060822,-515.03801973,0.00049589,120]
[354459251,1740519060831,-500.0,0.00049589,120]
[354459252,1740519060841,-500.0,0.00049589,120]
[354459253,1740519060850,-500.0,0.00049589,120]
[354459254,1740519060859,-562.39,0.00049589,120]
[354459255,1740519060868,-1658.65,0.00049589,120]
[354459256,1740519060877,-500.0,0.00049589,120]
[354459257,1740519060887,-500.0,0.00049589,120]
[354459258,1740519060897,-500.0,0.00049589,120]
[354459259,1740519060907,-500.0,0.00049589,120]
[354459260,1740519060920,-500.0,0.00049589,120]
[354459261,1740519060929,-511.14,0.00049589,120]
[354459262,1740519060938,-500.0,0.00049589,120]
[354459263,1740519060947,-500.0,0.00049589,120]
[354459264,1740519060957,-500.0,0.00049589,120]
[354459265,1740519060967,-500.0,0.00049589,120]
[354459266,1740519060976,-505.46744743,0.00049589,120]
[354459267,1740519060985,-500.0,0.00049589,120]
[354459268,1740519060995,-500.0,0.00049589,120]
[354459269,1740519061004,-500.0,0.00049589,120]
[354459270,1740519061013,-3546.38,0.00049589,120]
[354459271,1740519061022,-712.2,0.00049589,120]
[354459272,1740519061032,-500.0,0.00049589,120]
[354459273,1740519061043,-500.0,0.00049589,120]
[354459274,1740519061052,-500.0,0.00049589,120]
[354459275,1740519061061,-500.0,0.00049589,120]
[354459276,1740519061070,-501.71441517,0.00049589,120]
[354459277,1740519061081,-254.95235895,0.00049589,120]
[354459278,1740519061090,-500.0,0.00049589,120]
[354459279,1740519061100,-500.0,0.00049589,120]
[354459280,1740519061109,-500.0,0.00049589,120]
[354459281,1740519061118,-500.0,0.00049589,120]
[354459282,1740519061127,-500.0,0.00049589,120]
[354459283,1740519061137,-500.0,0.00049589,120]
[354459284,1740519061146,-500.0,0.00049589,120]
[354459285,1740519061155,-500.0,0.00049589,120]
[354459286,1740519061167,-500.0,0.00049589,120]
[354459287,1740519061176,-500.0,0.00049589,120]
[354459288,1740519061185,-500.0,0.00049589,120]
[354459289,1740519061194,-500.0,0.00049589,120]
[354459290,1740519061204,-504.46098639,0.00049589,120]
[354459291,1740519061214,-500.0,0.00049589,120]
[354459292,1740519061223,-500.0,0.00049589,120]
[354459293,1740519061232,-502.34937989,0.00049589,7]
[354459294,1740519061241,-500.0,0.00049589,120]
[354459295,1740519061251,-500.0,0.00049589,120]
[354459296,1740519061261,-500.0,0.00049589,120]
[354459297,1740519061270,-500.0,0.00049589,120]
[354459298,1740519061280,-503.02835192,0.00049589,120]
[354459299,1740519061290,-500.0,0.00049589,120]
[354459300,1740519061300,-500.0,0.00049589,120]
[354459301,1740519061310,-500.0,0.00049589,120]
[354459302,1740519061319,-500.0,0.00049589,120]
[354459303,1740519061328,-500.0,0.00049589,120]
[354459304,1740519061338,-500.0,0.00049589,120]
[354459305,1740519061348,-500.0,0.00049589,120]
[354459306,1740519061358,-505.86075972,0.00049589,120]
[354459307,1740519061367,-500.0,0.00049589,120]
[354459308,1740519061377,-500.0,0.00049589,120]
[354459309,1740519061387,-1235.61,0.00049589,120]
[354459310,1740519061397,-506.27816672,0.00049589,120]
[354459311,1740519061407,-500.0,0.00049589,120]
[354459312,1740519061419,-500.0,0.00049589,120]
[354459313,1740519061428,-500.0,0.00049589,120]
[354459314,1740519061437,-287.80668082,0.00049589,120]
[354459315,1740519061447,-596.01,0.00049589,120]
[354459316,1740519061457,-492.72186501,0.00049589,120]
[354459317,1740519061467,-500.0,0.00049589,120]
[354459318,1740519061477,-500.0,0.00049589,120]
[354459319,1740519061486,-500.0,0.00049589,120]
[354459320,1740519061495,-500.0,0.00049589,120]
[354459321,1740519061505,-500.0,0.00049589,120]
[354459322,1740519061514,-500.0,0.00049589,120]
[354459323,1740519061523,-505.60370436,0.00049589,120]
[354459324,1740519061532,-598.31,0.00049589,120]
[354459325,1740519061542,-500.0,0.00049589,120]
[354459326,1740519061551,-504.60478234,0.00049589,120]
[354459327,1740519061560,-572.41,0.00049589,120]
[354459328,1740519061570,-457.40894694,0.00049589,120]
[354459329,1740519061579,-500.0,0.00049589,120]
[354459330,1740519061588,-500.0,0.00049589,2]
[354459331,1740519061598,-500.0,0.00049589,120]
[354459332,1740519061607,-500.0,0.00049589,120]
[354459333,1740519061619,-500.0,0.00049589,120]
[354459334,1740519061628,-500.0,0.00049589,120]
[354459335,1740519061637,-693.13,0.00049589,120]
[354459336,1740519061647,-189.48378335,0.00049589,120]
[354459337,1740519061658,-500.0,0.00049589,120]
[354459338,1740519061669,-541.25771273,0.00049589,120]
[354459339,1740519061678,-500.0,0.00049589,120]
[354459340,1740519061688,-500.0,0.00049589,120]
[354459341,1740519061697,-205.01831373,0.00049589,120]
[354459342,1740519061707,-500.0,0.00049589,120]